bitfinex/quotes_SOLUSD_20250518
["timestamp","ask_amount","ask_price","bid_price","bid_amount"]
[1747580705996,28.75486615,174.09,174.04,28.75486615]
[1747580706197,38.7530377,174.1,173.99,5.74745675]
[1747580706375,38.7530377,174.1,174.04,28.75486615]
[1747580706581,46.10338884,174.1,174.05,28.75486615]
[1747580706809,31.74382538,174.1,174.07,28.75486615]
[1747580706984,74.85825499,174.1,174.05,28.75486615]
[1747580707304,74.85825499,174.1,174.0,28.75486615]
[1747580707305,28.75486615,174.09,174.04,28.75486615]
[1747580707602,74.85825499,174.1,174.06,28.75486615]
[1747580707794,74.85825499,174.1,174.05,28.75486615]
[1747580707992,28.75486615,174.09,173.98,6.89670311]
[1747580708183,46.10338884,174.1,174.05,28.75486615]
[1747580708373,74.85825499,174.1,174.05,28.75486615]
[1747580708779,5.74382538,174.1,174.07,28.75486615]
[1747580709291,5.74382538,174.1,174.05,28.75486615]
[1747580709486,5.74382538,174.1,173.98,31.74771253]
[1747580709487,28.75486615,174.09,173.98,32.89677033]
[1747580709781,28.75486615,174.09,174.04,28.75486615]
[1747580709984,5.74448529,174.08,174.05,28.75486615]
[1747580710500,5.74448529,174.08,174.06,28.75486615]
[1747580711003,5.74448529,174.08,174.05,28.75486615]
[1747580711376,5.74448529,174.08,174.06,28.75486615]
[1747580711574,5.74448529,174.08,174.01,1.14906658]
[1747580711798,5.74448529,174.08,174.06,28.75486615]
[1747580712000,20.10338884,174.1,174.06,28.75486615]
[1747580712182,20.10338884,174.1,174.01,6.89585226]
[1747580712389,28.75486615,174.08,173.98,6.89669669]
[1747580712603,28.75486615,174.08,173.96,1.14915406]
[1747580712604,28.75486615,174.06,173.96,1.14915406]
[1747580712794,54.75486615,174.06,174.01,28.75486615]
[1747580712992,26.0,174.06,174.02,28.75486615]
[1747580713518,18.64964886,174.09,173.96,6.89778483]
[1747580713519,26.0,174.09,174.05,28.75486615]
[1747580713892,5.74448529,174.08,174.05,28.75486615]
[1747580714120,5.74448529,174.08,174.06,28.75486615]
[1747580714429,34.49935144,174.08,173.99,26.0]
[1747580714610,5.74448529,174.08,174.04,28.75486615]
[1747580714814,5.74448529,174.08,174.05,28.75486615]
[1747580715499,8.84419381,174.09,174.07,28.75486615]
[1747580715692,8.84419381,174.09,174.01,1.14911158]
[1747580715893,8.84419381,174.09,174.07,28.75486615]
[1747580716094,8.84419381,174.09,174.08,28.75486615]
[1747580716523,8.84419381,174.09,174.07,28.75486615]
[1747580717014,5.74381114,174.11,174.08,28.75486615]
[1747580717397,5.74381114,174.11,174.09,28.75486615]
[1747580717802,5.74381114,174.11,174.08,28.75486615]
[1747580718119,44.64964886,174.14,174.1,28.75486615]
[1747580718120,5.74316563,174.12,174.1,28.75486615]
[1747580718299,5.74316563,174.12,174.09,28.75486615]
[1747580719729,5.74316563,174.12,174.09,17.98483419]
[1747580720026,5.74283581,174.13,174.09,17.98483419]
[1747580720332,5.74283581,174.13,174.1,17.98483419]
[1747580721590,5.74283581,174.13,174.09,17.98483419]
[1747580721906,5.74283581,174.13,174.1,17.98483419]
[1747580722409,5.74283581,174.13,174.04,28.96027938]
[1747580722722,5.74283581,174.13,174.1,17.98483419]
[1747580722897,5.74283581,174.13,174.04,28.96027938]
[1747580723212,5.74283581,174.13,174.1,17.98483419]
[1747580723509,5.74250602,174.14,174.1,17.98483419]
[1747580723689,5.74250602,174.14,174.12,17.98483419]
[1747580723892,5.74250602,174.14,174.13,17.98483419]
[1747580724935,5.74217628,174.15,174.13,17.98483419]
[1747580725903,5.74217628,174.15,174.11,17.98483419]
[1747580726104,5.74217628,174.15,174.06,5.74509782]
[1747580726105,20.09761699,174.15,174.05,1.14867938]
[1747580726304,17.98483419,174.12,174.04,1.7346]
[1747580726609,17.98483419,174.11,174.06,17.98483419]
[1747580727008,5.74382538,174.1,174.06,17.98483419]
[1747580727864,38.08822303,174.1,174.06,17.98483419]
[1747580728064,17.98483419,174.08,174.01,21.48]
[1747580728669,17.98483419,174.06,174.0,1.6605]
[1747580728830,17.98483419,174.04,173.95,7.674]
[1747580729143,23.73096991,174.03,173.99,17.98483419]
[1747580729343,5.74613572,174.03,174.01,17.98483419]
[1747580729554,26.0,174.05,174.02,17.98483419]
[1747580729945,33.0,174.05,174.03,17.98483419]
[1747580730172,43.98483419,174.05,174.0,17.98483419]
[1747580730362,26.0,174.05,174.01,17.98483419]
[1747580731062,5.74580556,174.04,174.01,17.98483419]
[1747580731588,5.74580556,174.04,173.96,22.62928443]
[1747580731872,5.74580556,174.04,173.95,1.549]
[1747580731873,28.80847147,174.03,173.95,1.549]
[1747580732083,46.11031946,174.04,173.99,28.80847147]
[1747580732374,74.91879093,174.04,173.94,1.14939668]
[1747580732673,46.11031946,174.04,174.0,28.80847147]
[1747580732869,46.11031946,174.04,174.01,28.80847147]
[1747580732870,5.74580556,174.04,174.01,28.80847147]
[1747580733958,5.74580556,174.04,174.0,28.80847147]
[1747580734151,28.80847147,174.03,173.98,28.80847147]
[1747580734372,54.80847147,174.03,173.98,28.80847147]
[1747580734563,54.80847147,174.03,173.93,27.549]
[1747580734740,54.80847147,174.03,173.98,28.80847147]
[1747580735166,5.74646592,174.02,173.99,28.80847147]
[1747580735367,5.74646592,174.02,174.0,28.80847147]
[1747580735861,5.74646592,174.02,174.01,28.80847147]
[1747580736852,5.74646592,174.02,173.94,4.01020849]
[1747580737063,5.74646592,174.02,174.01,28.80847147]
[1747580737954,5.74646592,174.02,173.99,28.80847147]
[1747580738353,5.74646592,174.02,174.0,28.80847147]
[1747580739079,5.74580556,174.04,174.0,28.80847147]
[1747580739450,28.80847147,174.03,173.93,1.549]
[1747580739664,28.80847147,174.02,173.98,28.80847147]
[1747580740753,28.80847147,174.03,173.98,28.80847147]
[1747580741151,20.11031946,174.04,173.98,28.80847147]
[1747580741366,20.11031946,174.04,173.99,28.80847147]
[1747580741570,5.74580556,174.04,174.01,28.80847147]
[1747580742158,5.74580556,174.04,174.0,28.80847147]
[1747580742359,48.91879093,174.04,173.95,26.0]
[1747580742557,48.91879093,174.04,174.0,28.80847147]
[1747580742952,5.74580556,174.04,174.0,28.80847147]
[1747580743276,5.74547543,174.05,174.02,28.80847147]
[1747580744259,5.74547543,174.05,174.04,28.80847147]
[1747580744453,28.80847147,174.09,174.0,28.80847147]
[1747580744454,20.10569852,174.08,174.0,28.80847147]
[1747580744678,20.10569852,174.08,174.01,28.80847147]
[1747580744679,28.80847147,174.06,174.01,28.80847147]
[1747580745173,28.80847147,174.06,174.02,28.80847147]
[1747580745362,5.74547543,174.05,174.02,28.80847147]
[1747580746554,5.74547543,174.05,173.99,21.48]
[1747580746773,5.74547543,174.05,174.02,28.80847147]
[1747580746965,5.74547543,174.05,174.01,28.80847147]
[1747580747747,5.74547543,174.05,173.99,21.48]
[1747580747953,5.74547543,174.05,174.01,28.80847147]
[1747580748253,28.80847147,174.03,173.94,9.15628934]
[1747580748464,28.80847147,174.03,173.98,28.80847147]
[1747580749070,28.80847147,174.04,173.99,28.80847147]
[1747580749477,48.91994649,174.03,173.94,6.2774]
[1747580749662,48.91994649,174.03,173.98,28.80847147]
[1747580750478,48.91994649,174.03,173.94,6.2774]
[1747580750779,48.91994649,174.03,173.98,28.80847147]
[1747580750960,5.74613572,174.03,173.99,28.80847147]
[1747580751572,20.11072788,174.04,174.0,28.80847147]
[1747580751755,20.11072788,174.04,174.0,18.00396219]
[1747580751956,5.74580556,174.04,174.0,18.00396219]
[1747580752371,5.74580556,174.04,173.99,18.00396219]
[1747580752555,23.74976775,174.04,173.99,18.00396219]
[1747580753787,5.74580556,174.04,173.95,5.74871403]
[1747580753960,18.00396219,174.03,173.98,18.00396219]
[1747580755473,5.74646592,174.02,173.98,18.00396219]
[1747580755671,5.74646592,174.02,173.99,18.00396219]
[1747580755868,5.74646592,174.02,174.0,18.00396219]
[1747580756557,5.74580556,174.04,174.01,18.00396219]
[1747580756760,5.74580556,174.04,173.96,1.14927803]
[1747580756960,5.74580556,174.04,174.0,18.00396219]
[1747580757285,5.74580556,174.04,174.01,18.00396219]
[1747580757489,38.11312621,174.05,173.94,6.2774]
[1747580757685,18.00396219,174.03,173.98,18.00396219]
[1747580757890,18.00396219,174.02,173.94,6.2774]
[1747580758093,26.0,174.02,173.97,18.00396219]
[1747580758275,26.0,174.02,173.99,18.00396219]
[1747580758475,26.0,174.02,174.0,18.00396219]
[1747580758682,26.0,174.02,173.98,18.00396219]
[1747580759486,5.74679616,174.01,173.98,18.00396219]
[1747580760471,26.0,174.02,173.94,12.02648624]
[1747580760472,31.7465267,174.02,174.0,18.00396219]
[1747580760989,31.7465267,174.02,173.99,18.00396219]
[1747580761186,49.75048889,174.02,173.94,6.2774]
[1747580761490,49.75048889,174.02,173.96,18.00396219]
[1747580761663,65.70695369,174.02,173.92,5.74948615]
[1747580761867,18.00396219,173.97,173.88,21.46]
[1747580762103,18.00396219,173.97,173.92,18.00396219]
[1747580762381,18.00396219,173.98,173.93,18.00396219]
[1747580762580,5.74811749,173.97,173.89,5.75074928]
[1747580762783,38.1223734,173.97,173.88,21.46]
[1747580762985,5.74811749,173.97,173.94,18.00396219]
[1747580763195,26.0,173.99,173.96,18.00396219]
[1747580763500,1.5903,174.02,173.97,18.00396219]
[1747580763501,5.74712643,174.0,173.97,18.00396219]
[1747580763676,5.74712643,174.0,173.91,27.14960192]
[1747580763872,5.74712643,174.0,173.96,18.00396219]
[1747580764283,5.74683896,174.01,173.98,18.00396219]
[1747580764483,5.74683896,174.01,173.99,18.00396219]
[1747580764699,5.74683896,174.01,173.98,18.00396219]
[1747580765403,23.75080115,174.01,173.96,18.00396219]
[1747580765599,18.00396219,174.0,173.95,18.00396219]
[1747580766188,18.00396219,174.0,173.92,1.5354]
[1747580766189,18.00396219,173.99,173.93,18.00396219]
[1747580766373,18.00396219,173.98,173.92,1.5354]
[1747580766584,18.00396219,173.96,173.9,6.653]
[1747580766899,18.00396219,173.96,173.91,18.00396219]
[1747580767069,38.1223734,173.97,173.92,18.00396219]
[1747580767597,18.00396219,173.95,173.9,18.00396219]
[1747580768606,5.74910888,173.94,173.9,18.00396219]
[1747580769594,18.00396219,173.93,173.88,18.00396219]
[1747580769973,18.00396219,173.93,173.86,6.653]
[1747580770174,5.74910888,173.94,173.9,18.00396219]
[1747580770585,5.74877838,173.95,173.9,18.00396219]
[1747580770788,18.00396219,173.94,173.9,18.00396219]
[1747580771696,18.00396219,173.91,173.82,5.75307789]
[1747580771881,18.00396219,173.9,173.85,18.00396219]
[1747580772499,18.00396219,173.9,173.86,18.00396219]
[1747580772724,5.75010062,173.91,173.87,18.00396219]
[1747580773332,23.75406281,173.91,173.86,18.00396219]
[1747580773502,18.00396219,173.9,173.82,27.19303204]
[1747580773706,18.00396219,173.9,173.85,18.00396219]
[1747580774237,18.00396219,173.89,173.84,18.00396219]
[1747580774609,5.75142347,173.87,173.8,27.19368796]
[1747580774825,5.75142347,173.87,173.83,18.00396219]
[1747580775032,23.75538566,173.87,173.79,8.22280001]
[1747580775239,44.00396219,173.86,173.81,18.00396219]
[1747580775433,44.00396219,173.86,173.79,8.22280001]
[1747580775614,44.00396219,173.86,173.81,18.00396219]
[1747580775809,26.0,173.86,173.82,18.00396219]
[1747580776711,5.75208513,173.85,173.82,18.00396219]
[1747580777705,5.75208513,173.85,173.81,18.00396219]
[1747580777908,5.75208513,173.85,173.79,8.22280001]
[1747580778308,18.00396219,173.84,173.79,20.0395622]
[1747580778723,23.75658095,173.84,173.79,0.42050001]
[1747580779033,23.75658095,173.84,173.79,18.4244622]
[1747580779411,23.75658095,173.84,173.79,0.42050001]
[1747580779613,23.75658095,173.84,173.79,18.4244622]
[1747580780237,23.75604732,173.85,173.8,18.00396219]
[1747580780917,5.75208513,173.85,173.8,18.00396219]
[1747580781247,18.00396219,173.84,173.79,18.4244622]
[1747580781441,18.00396219,173.83,173.79,0.42050001]
[1747580781803,18.00396219,173.82,173.79,0.42050001]
[1747580782010,18.00396219,173.81,173.79,0.42050001]
[1747580782326,5.75373993,173.8,173.79,0.42050001]
[1747580782720,23.75770212,173.8,173.79,0.42050001]
[1747580784127,49.75770212,173.8,173.79,0.42050001]
[1747580784325,49.75770212,173.8,173.74,18.00396219]
[1747580784634,5.75440211,173.78,173.74,18.00396219]
[1747580785015,44.00396219,173.8,173.76,18.00396219]
[1747580785216,26.0,173.8,173.76,18.00396219]
[1747580785420,18.00396219,173.79,173.74,18.00396219]
[1747580785933,18.00396219,173.79,173.71,28.9295864]
[1747580786122,18.00396219,173.74,173.7,1.5869]
[1747580786506,18.00396219,173.74,173.7,19.59086219]
[1747580786710,23.75992443,173.74,173.7,19.59086219]
[1747580787414,23.75992443,173.74,173.7,1.5869]
[1747580787614,23.75992443,173.74,173.69,18.00396219]
[1747580787819,18.00396219,173.73,173.69,18.00396219]
[1747580788217,23.75992443,173.74,173.7,18.00396219]
[1747580788621,18.00396219,173.72,173.66,29.3656]
[1747580788821,23.76068316,173.71,173.66,25.92956219]
[1747580789236,23.76068316,173.71,173.66,19.59086219]
[1747580789628,5.75672097,173.71,173.66,1.5869]
[1747580789829,18.00396219,173.71,173.66,19.59086219]
[1747580790212,18.00396219,173.7,173.66,1.5869]
[1747580790517,5.75642554,173.72,173.64,18.00396219]
[1747580790727,18.00396219,173.7,173.66,18.00396219]
[1747580791041,18.00396219,173.71,173.66,18.00396219]
[1747580791222,18.00396219,173.71,173.65,5.75866592]
[1747580791424,5.75638959,173.72,173.68,18.00396219]
[1747580791736,31.75613489,173.73,173.65,6.91000546]
[1747580791934,49.76009708,173.73,173.68,18.00396219]
[1747580792329,49.76009708,173.73,173.64,5.75904169]
[1747580792525,49.76009708,173.73,173.68,18.00396219]
[1747580792733,18.00396219,173.74,173.7,18.00396219]
[1747580792929,18.00396219,173.75,173.7,18.00396219]
[1747580793137,44.00396219,173.75,173.7,18.00396219]
[1747580793336,5.75506445,173.76,173.72,18.00396219]
[1747580793526,16.00829278,173.81,173.73,18.00396219]
[1747580793722,18.00396219,173.81,173.76,18.00396219]
[1747580794347,5.75274693,173.83,173.76,18.00396219]
[1747580794537,5.75274693,173.83,173.78,18.00396219]
[1747580794727,18.00396219,173.83,173.78,18.00396219]
[1747580794927,18.00396219,173.82,173.77,18.00396219]
[1747580795749,28.87934508,173.82,173.77,28.87934508]
[1747580795946,28.87934508,173.83,173.78,28.87934508]
[1747580796457,26.0,173.82,173.78,28.87934508]
[1747580796662,5.75241601,173.84,173.78,28.87934508]
[1747580796833,5.75241601,173.84,173.79,28.87934508]
[1747580797028,26.0,173.83,173.79,28.87934508]
[1747580797251,37.95323867,173.85,173.81,28.87934508]
[1747580797436,32.20107422,173.85,173.82,28.87934508]
[1747580797746,37.95326702,173.85,173.8,28.87934508]
[1747580798058,28.87934508,173.84,173.79,28.87934508]
[1747580798874,5.75274693,173.83,173.79,28.87934508]
[1747580799852,28.87934508,173.82,173.76,29.2518]
[1747580800060,28.87934508,173.81,173.77,28.87934508]
[1747580800435,28.87934508,173.81,173.75,1.15057547]
[1747580800642,28.87934508,173.81,173.76,28.87934508]
[1747580800843,34.63307925,173.81,173.77,28.87934508]
[1747580801970,28.87934508,173.79,173.74,50.33934508]
[1747580802263,28.87934508,173.8,173.75,28.87934508]
[1747580802694,28.87934508,173.8,173.76,28.87934508]
[1747580802856,34.63307925,173.81,173.76,28.87934508]
[1747580803055,5.75373417,173.81,173.77,28.87934508]
[1747580803659,5.75373417,173.81,173.72,30.72115053]
[1747580803865,5.75373417,173.81,173.77,28.87934508]
[1747580804378,34.63307925,173.81,173.76,28.87934508]
[1747580804878,34.63307925,173.81,173.69,21.44]
[1747580804879,28.87934508,173.77,173.68,29.0084]
[1747580805077,28.87934508,173.75,173.68,29.0084]
[1747580805276,28.87934508,173.75,173.7,28.87934508]
[1747580805472,28.87934508,173.74,173.69,28.87934508]
[1747580805973,28.87934508,173.74,173.68,7.5884]
[1747580806181,28.87934508,173.74,173.7,28.87934508]
[1747580806664,5.75605825,173.73,173.7,28.87934508]
[1747580807265,5.75605825,173.73,173.68,7.5884]
[1747580807476,5.75605825,173.73,173.68,1.5048]
[1747580807669,5.75605825,173.73,173.69,28.87934508]
[1747580809181,5.75605825,173.73,173.7,28.87934508]
[1747580810215,5.75605825,173.73,173.69,28.87934508]
[1747580811215,5.75605825,173.73,173.68,1.5048]
[1747580811397,5.75605825,173.73,173.69,28.87934508]
[1747580812015,5.75605825,173.73,173.68,1.5048]
[1747580812313,5.75605825,173.73,173.69,28.87934508]
[1747580812494,5.75605825,173.73,173.7,28.87934508]
[1747580813094,5.75605825,173.73,173.68,1.5048]
[1747580813303,28.87934508,173.71,173.67,28.87934508]
[1747580813500,28.87934508,173.71,173.64,61.25102912]
[1747580813807,28.87934508,173.72,173.67,28.87934508]
[1747580814303,28.87934508,173.71,173.67,28.87934508]
[1747580814480,28.87934508,173.71,173.64,29.49224647]
[1747580814687,28.87934508,173.71,173.66,28.87934508]
[1747580814900,28.87934508,173.7,173.64,2.00864647]
[1747580815103,28.87934508,173.7,173.65,28.87934508]
[1747580815307,5.75738384,173.69,173.64,2.00864647]
[1747580815484,5.75738384,173.69,173.65,28.87934508]
[1747580815685,34.63672892,173.69,173.65,28.87934508]
[1747580816116,5.75738384,173.69,173.66,28.87934508]
[1747580817223,5.75738384,173.69,173.63,42.8]
[1747580817517,5.75738384,173.69,173.65,28.87934508]
[1747580817687,5.75738384,173.69,173.65,18.07466468]
[1747580817888,5.75738384,173.69,173.66,18.07466468]
[1747580818089,5.75738384,173.69,173.65,18.07466468]
[1747580819028,5.7570927,173.7,173.67,18.07466468]
[1747580819321,31.75605825,173.73,173.68,18.07466468]
[1747580819624,18.07466468,173.72,173.67,18.07466468]
[1747580819792,31.75605825,173.73,173.67,18.07466468]
[1747580819992,18.07466468,173.72,173.67,18.07466468]
[1747580820210,18.07466468,173.72,173.63,1.15156148]
[1747580820416,5.75672097,173.71,173.67,18.07466468]
[1747580820612,5.75672097,173.71,173.64,5.75894277]
[1747580820803,5.75672097,173.71,173.67,18.07466468]
[1747580821498,5.75672097,173.71,173.63,6.91083547]
[1747580821800,5.75672097,173.71,173.67,18.07466468]
[1747580822002,5.75672097,173.71,173.63,6.91083547]
[1747580822206,5.75647533,173.72,173.68,18.07466468]
[1747580822715,33.03701765,173.77,173.7,18.07466468]
[1747580822918,23.82906679,173.78,173.73,18.07466468]
[1747580823118,23.82906679,173.78,173.68,8.1268]
[1747580823119,5.75440211,173.78,173.75,18.07466468]
[1747580824241,23.82906679,173.78,173.7,1.15095177]
[1747580824516,18.07466468,173.76,173.68,6.9086098]
[1747580824691,18.07466468,173.75,173.7,18.07466468]
[1747580825127,18.07466468,173.77,173.72,18.07466468]
[1747580825800,20.1404074,173.78,173.67,28.28913901]
[1747580826009,5.75539568,173.75,173.72,18.07466468]
[1747580826403,5.75539568,173.75,173.67,21.38]
[1747580826607,23.83006036,173.75,173.66,1.15109375]
[1747580826809,23.83006036,173.75,173.7,18.07466468]
[1747580827005,18.07466468,173.74,173.69,18.07466468]
[1747580827415,23.83006036,173.75,173.7,18.07466468]
[1747580828122,5.75605825,173.73,173.69,18.07466468]
[1747580828303,23.83072293,173.73,173.69,18.07466468]
[1747580828831,5.75605825,173.73,173.7,18.07466468]
[1747580829212,5.75539568,173.75,173.71,18.07466468]
[1747580829622,5.75539568,173.75,173.67,1.15129657]
[1747580829827,5.75539568,173.75,173.71,18.07466468]
[1747580830327,5.75539568,173.75,173.68,5.75754859]
[1747580830628,5.75539568,173.75,173.71,18.07466468]
[1747580830832,18.07466468,173.74,173.69,18.07466468]
[1747580832124,20.14388488,173.75,173.7,18.07466468]
[1747580832125,23.83006036,173.75,173.7,18.07466468]
[1747580832322,18.07466468,173.74,173.69,18.07466468]
[1747580832718,18.07466468,173.71,173.64,23.0214]
[1747580832923,18.07466468,173.71,173.66,18.07466468]
[1747580833122,26.0,173.74,173.67,18.07466468]
[1747580833345,18.07466468,173.72,173.67,18.07466468]
[1747580833745,18.07466468,173.72,173.64,23.0214]
[1747580833935,18.07466468,173.72,173.67,18.07466468]
[1747580834245,5.75705238,173.7,173.67,18.07466468]
[1747580834920,5.75705238,173.7,173.66,18.07466468]
[1747580835120,23.83171706,173.7,173.65,18.07466468]
[1747580835924,23.83171706,173.7,173.66,18.07466468]
[1747580836134,5.75705238,173.7,173.66,18.07466468]
[1747580837159,5.75705238,173.7,173.67,18.07466468]
[1747580837347,5.75705238,173.7,173.66,18.07466468]
[1747580837650,23.83171706,173.7,173.66,18.07466468]
[1747580838034,49.83141641,173.71,173.66,18.07466468]
[1747580838228,31.75675173,173.71,173.67,18.07466468]
[1747580838631,49.83141641,173.71,173.66,18.07466468]
[1747580838830,18.07466468,173.7,173.65,18.07466468]
[1747580839835,64.22321883,173.71,173.66,18.07466468]
[1747580840032,18.07466468,173.7,173.65,18.07466468]
[1747580840427,5.75771533,173.68,173.64,18.07466468]
[1747580840967,5.75572694,173.74,173.67,18.07466468]
[1747580841255,5.75572694,173.74,173.69,18.07466468]
[1747580841256,26.0,173.73,173.69,18.07466468]
[1747580841754,5.67782444,173.8,173.72,18.07466468]
[1747580841936,5.754071,173.79,173.75,18.07466468]
[1747580842257,4.09132444,173.8,173.76,18.07466468]
[1747580842427,22.16598912,173.8,173.75,18.07466468]
[1747580842630,27.91979942,173.8,173.75,18.07466468]
[1747580842828,18.07466468,173.79,173.74,18.07466468]
[1747580843135,27.91979942,173.8,173.75,18.07466468]
[1747580843549,23.82847498,173.8,173.75,18.07466468]
[1747580843762,23.82847498,173.8,173.76,18.07466468]
[1747580843927,23.82847498,173.8,173.75,18.07466468]
[1747580844550,18.07466468,173.79,173.74,18.07466468]
[1747580844759,5.75440211,173.78,173.74,18.07466468]
[1747580845436,5.75418685,173.79,173.76,18.07466468]
[1747580845636,5.75418685,173.79,173.72,1.1509573]
[1747580845861,5.75418685,173.79,173.76,18.07466468]
[1747580846162,5.75338059,173.82,173.78,18.07466468]
[1747580846337,5.75338059,173.82,173.72,1.1509573]
[1747580846542,18.07466468,173.81,173.76,18.07466468]
[1747580846731,5.75373993,173.8,173.77,18.07466468]
[1747580847245,5.7534968,173.81,173.72,6.90707292]
[1747580847551,5.7534968,173.81,173.77,18.07466468]
[1747580847754,5.7534968,173.81,173.78,18.07466468]
[1747580848063,23.82816148,173.81,173.72,1.1509573]
[1747580848263,23.82816148,173.81,173.76,18.07466468]
[1747580849765,5.75208513,173.85,173.79,18.07466468]
[1747580849945,23.82674981,173.85,173.8,18.07466468]
[1747580850366,5.75208513,173.85,173.79,18.07466468]
[1747580850549,18.07466468,173.84,173.79,18.07466468]
[1747580850748,5.75208513,173.85,173.8,18.07466468]
[1747580850963,18.07466468,173.84,173.8,18.07466468]
[1747580851567,49.82674981,173.85,173.81,18.07466468]
[1747580852657,31.75208513,173.85,173.8,18.07466468]
[1747580852858,49.82674981,173.85,173.8,18.07466468]
[1747580853762,18.07466468,173.84,173.77,5.75473326]
[1747580853966,18.07466468,173.84,173.8,18.07466468]
[1747580854767,23.82735836,173.84,173.8,18.07466468]
[1747580855656,5.75269368,173.84,173.78,18.07466468]
[1747580855856,18.07466468,173.83,173.78,18.07466468]
[1747580856275,5.75269368,173.84,173.78,18.07466468]
[1747580856476,5.75269368,173.84,173.76,28.64544877]
[1747580856477,18.07466468,173.83,173.79,18.07466468]
[1747580856780,5.75307789,173.82,173.79,18.07466468]
[1747580856965,5.75307789,173.82,173.76,22.8906]
[1747580856966,5.75307789,173.82,173.78,18.07466468]
[1747580857778,5.75307789,173.82,173.79,18.07466468]
[1747580858080,5.75307789,173.82,173.78,18.07466468]
[1747580858461,18.07466468,173.79,173.74,21.34]
[1747580858658,18.07466468,173.79,173.74,39.41466468]
[1747580858862,23.82894048,173.79,173.74,21.34]
[1747580859062,5.75340889,173.81,173.75,18.07466468]
[1747580859264,5.75340889,173.81,173.74,21.34]
[1747580859265,23.82807357,173.81,173.76,18.07466468]
[1747580859876,5.75340889,173.81,173.73,21.3]
[1747580860078,18.07466468,173.79,173.74,18.07466468]
[1747580860258,20.13693112,173.81,173.74,18.07466468]
[1747580860461,18.07466468,173.79,173.73,21.3]
[1747580860686,20.13693112,173.81,173.74,18.07466468]
[1747580860867,18.07466468,173.8,173.75,18.07466468]
[1747580861060,18.07466468,173.79,173.75,18.07466468]
[1747580861461,18.07466468,173.79,173.74,18.07466468]
[1747580861975,5.75340889,173.81,173.75,18.07466468]
[1747580862171,26.0,173.82,173.79,18.07466468]
[1747580862372,31.75314463,173.82,173.79,18.07466468]
[1747580862574,49.82780931,173.82,173.77,18.07466468]
[1747580863588,31.75314463,173.82,173.78,18.07466468]
[1747580863769,49.82780931,173.82,173.77,18.07466468]
[1747580863968,26.0,173.79,173.75,18.07466468]
[1747580864277,26.0,173.79,173.76,18.07466468]
[1747580864586,49.82780931,173.82,173.77,18.07466468]
[1747580864970,31.75313191,173.82,173.78,18.07466468]
[1747580865182,49.82779659,173.82,173.77,18.07466468]
[1747580865378,5.75373993,173.8,173.76,18.07466468]
[1747580865889,23.82840461,173.8,173.75,18.07466468]
[1747580866268,18.07466468,173.79,173.72,1.5442]
[1747580866466,18.07466468,173.78,173.72,1.5442]
[1747580866666,18.07466468,173.78,173.73,18.07466468]
[1747580867782,5.75473326,173.77,173.73,18.07466468]
[1747580867980,86.54814886,173.76,173.71,0.49394735]
[1747580868189,86.54814886,173.76,173.62,5.75968883]
[1747580868190,18.07466468,173.73,173.63,1.15184895]
[1747580868493,44.07466468,173.74,173.68,18.07466468]
[1747580869089,44.07466468,173.74,173.65,1.15135845]
[1747580869090,26.0,173.74,173.69,18.07466468]
[1747580869292,18.07466468,173.72,173.64,21.28]
[1747580869471,18.07466468,173.72,173.67,18.07466468]
[1747580869792,5.75705238,173.7,173.66,18.07466468]
[1747580870190,5.75674258,173.71,173.67,18.07466468]
[1747580870397,26.0,173.72,173.69,18.07466468]
[1747580870573,44.07466468,173.72,173.66,18.07466468]
[1747580870777,18.07466468,173.71,173.66,18.07466468]
[1747580871077,18.07466468,173.71,173.64,22.43145257]
[1747580871276,18.07466468,173.71,173.66,18.07466468]
[1747580871889,23.83171706,173.7,173.65,18.07466468]
[1747580872694,18.07466468,173.69,173.62,2.80358282]
[1747580872992,18.07466468,173.69,173.64,18.07466468]
[1747580873199,23.83171706,173.7,173.66,18.07466468]
[1747580873497,23.83171706,173.7,173.62,29.84316905]
[1747580873697,23.83171706,173.7,173.66,18.07466468]
[1747580874099,18.07466468,173.69,173.62,24.08358282]
[1747580874406,23.83171706,173.7,173.65,18.07466468]
[1747580875698,18.07466468,173.69,173.64,18.07466468]
[1747580875879,18.07466468,173.68,173.63,18.07466468]
[1747580876195,18.07466468,173.66,173.61,0.33586284]
[1747580876385,18.07466468,173.65,173.61,0.33586284]
[1747580876897,18.07466468,173.66,173.61,18.41052752]
[1747580877198,18.07466468,173.65,173.61,0.33586284]
[1747580877500,18.07466468,173.64,173.61,0.33586284]
[1747580877900,26.0,173.66,173.62,18.07466468]
[1747580878204,31.75844831,173.66,173.62,18.07466468]
[1747580878707,49.83311299,173.66,173.61,18.41052752]
[1747580879901,49.83311299,173.66,173.62,18.07466468]
[1747580879902,31.75844831,173.66,173.62,18.07466468]
[1747580880104,49.83311299,173.66,173.61,18.41052752]
[1747580880491,18.07466468,173.65,173.61,0.33586284]
[1747580880809,49.83311299,173.66,173.61,18.41052752]
[1747580881526,18.07466468,173.65,173.61,0.33586284]
[1747580882304,5.75904169,173.64,173.61,0.33586284]
[1747580882809,23.83370637,173.64,173.61,0.33586284]